bitfinex/quotes_BTCUSD_20251219
["timestamp","ask_amount","ask_price","bid_price","bid_amount"]
[1766118791565,0.01134,87252.0,87238.0,0.00576]
[1766118791769,0.01450312,87251.0,87238.0,0.00576]
[1766118791970,0.01056,87249.0,87232.0,0.00576]
[1766118792586,0.00576,87252.0,87235.0,0.11349]
[1766118792800,0.00576,87252.0,87236.0,0.24586]
[1766118792998,0.00979,87249.0,87227.0,0.11349]
[1766118793273,0.95741527,87250.0,87217.0,0.0002]
[1766118793274,0.01078,87227.0,87217.0,0.0002]
[1766118793477,0.01146368,87232.0,87206.0,0.00576]
[1766118793478,0.00979,87225.0,87206.0,0.00576]
[1766118794519,0.00979,87225.0,87206.0,0.00583963]
[1766118794732,0.01450312,87224.0,87206.0,0.00583963]
[1766118795264,0.00576,87226.0,87207.0,0.24586]
[1766118795517,0.00076,87226.0,87207.0,0.24586]
[1766118795653,0.00076,87226.0,87206.0,0.01730673]
[1766118795859,0.00076,87226.0,87207.0,0.24586]
[1766118796263,0.00076,87226.0,87206.0,0.01730673]
[1766118796466,0.00076,87226.0,87207.0,0.24586]
[1766118797893,0.00076,87226.0,87208.0,0.24586]
[1766118798099,0.00076,87226.0,87208.0,0.25732683]
[1766118798313,0.00076,87226.0,87208.0,0.24586]
[1766118798518,0.00076,87226.0,87210.0,0.01146657]
[1766118798720,0.01798606,87229.0,87226.0,0.000109]
[1766118799074,0.00576,87234.0,87225.0,0.11349]
[1766118799278,0.00561,87252.0,87231.0,0.13237]
[1766118799454,0.00576,87245.0,87231.0,0.13237]
[1766118800036,0.00576,87245.0,87229.0,0.11349]
[1766118800241,0.00576,87245.0,87226.0,0.00576]
[1766118800448,0.00576,87245.0,87227.0,0.11349]
[1766118800762,0.01208,87246.0,87227.0,0.11349]
[1766118801477,0.0907,87244.0,87227.0,0.11349]
[1766118802351,0.10868356,87244.0,87227.0,0.11349]
[1766118802529,0.01798356,87244.0,87227.0,0.24586]
[1766118802865,0.01798356,87244.0,87228.0,0.13237]
[1766118803066,0.01798356,87244.0,87232.0,0.13237]
[1766118803245,0.02374356,87244.0,87232.0,0.24586]
[1766118803849,0.02374356,87244.0,87232.0,0.11349]
[1766118804042,0.02374356,87244.0,87226.0,0.13813]
[1766118804562,0.0034,87243.0,87226.0,0.00576]
[1766118804771,0.0034,87235.0,87224.0,0.00576]
[1766118805613,0.05504556,87236.0,87224.0,0.00576]
[1766118805817,0.01145934,87265.0,87240.0,0.11349]
[1766118806017,0.05504556,87255.0,87243.0,0.001099]
[1766118806221,0.00576,87254.0,87243.0,0.001099]
[1766118806421,0.00576,87253.0,87243.0,0.24586]
[1766118806626,0.00576,87256.0,87243.0,0.25732223]
[1766118806797,0.00576,87256.0,87243.0,0.48656695]
[1766118807095,0.00576,87256.0,87242.0,0.01146236]
[1766118807293,0.00576,87256.0,87243.0,0.25732223]
[1766118807747,0.05504556,87265.0,87244.0,0.22924212]
[1766118807937,0.05504556,87265.0,87243.0,0.24070668]
[1766118807938,0.00576,87264.0,87249.0,0.24586]
[1766118808192,0.00576,87264.0,87249.0,0.11349]
[1766118808193,0.05504556,87263.0,87249.0,0.11349]
[1766118809332,0.05504556,87263.0,87243.0,0.14959223]
[1766118809551,0.00018,87259.0,87244.0,0.00576]
[1766118809730,0.00018,87258.0,87244.0,0.00576]
[1766118809926,0.00576,87257.0,87244.0,0.00576]
[1766118810395,0.00576,87257.0,87228.0,0.11349]
[1766118810396,0.05504556,87249.0,87228.0,0.11349]
[1766118810667,0.00576,87257.0,87238.0,0.11349]
[1766118810847,0.00576,87257.0,87239.0,0.25732276]
[1766118811255,0.00576,87257.0,87241.0,0.24586]
[1766118811441,0.00576,87257.0,87241.0,0.0114625]
[1766118811640,0.00576,87257.0,87242.0,0.24586]
[1766118811955,0.00010939,87265.0,87257.0,0.001099]
[1766118812561,0.00010939,87265.0,87249.0,0.24586]
[1766118814375,0.10226873,87265.0,87249.0,0.24586]
[1766118814592,0.09080939,87265.0,87243.0,0.00576]
[1766118814777,0.09080939,87265.0,87244.0,0.242]
[1766118815609,0.00010939,87265.0,87244.0,0.242]
[1766118815737,0.01082785,87265.0,87244.0,0.242]
[1766118815932,0.01082786,87265.0,87244.0,0.242]
[1766118817001,0.01450312,87264.0,87244.0,0.242]
[1766118817448,0.00010939,87265.0,87243.0,0.24646661]
[1766118817646,0.01082972,87265.0,87244.0,0.242]
[1766118817863,0.01082972,87265.0,87245.0,0.242]
[1766118818660,0.00010939,87265.0,87243.0,0.00576]
[1766118818864,0.01461251,87265.0,87243.0,0.00576]
[1766118819085,0.00010939,87265.0,87243.0,0.00576]
[1766118819949,0.09080939,87265.0,87243.0,0.00576]
[1766118820147,0.10226873,87265.0,87243.0,0.00576]
[1766118820376,0.24065479,87262.0,87243.0,0.00576]
[1766118820853,0.24065382,87263.0,87243.0,0.00576]
[1766118821442,0.01145987,87261.0,87243.0,0.00576]
[1766118821650,0.01146013,87259.0,87243.0,0.00576]
[1766118821861,0.00576,87260.0,87244.0,0.0114621]
[1766118822097,0.00576,87260.0,87246.0,0.242]
[1766118822837,0.00576,87260.0,87246.0,0.11541]
[1766118823287,0.00576,87260.0,87243.0,0.00576]
[1766118825493,0.00576,87260.0,87240.0,0.00576]
[1766118825494,0.05504556,87253.0,87240.0,0.00576]
[1766118825658,0.00576,87252.0,87240.0,0.00576]
[1766118826504,0.05504556,87253.0,87252.0,0.001099]
[1766118826707,0.01798068,87264.0,87244.0,0.0114621]
[1766118826908,0.01798068,87264.0,87244.0,0.242]
[1766118826909,0.00576,87263.0,87244.0,0.242]
[1766118827087,0.05168,87263.0,87244.0,0.242]
[1766118827488,0.01798068,87264.0,87244.0,0.242]
[1766118827701,0.01798068,87264.0,87244.0,0.237]
[1766118827896,0.01798068,87264.0,87247.0,0.01146171]
[1766118828098,0.01798068,87264.0,87246.0,0.24069871]
[1766118828099,0.00576,87263.0,87246.0,0.24069871]
[1766118828338,0.01798068,87264.0,87246.0,0.24069871]
[1766118828548,0.01798068,87264.0,87245.0,0.13805197]
[1766118828549,0.01798068,87264.0,87247.0,0.01146171]
[1766118828749,0.00576,87263.0,87246.0,0.24069631]
[1766118828997,0.00576,87263.0,87248.0,0.12659]
[1766118829400,0.01798068,87264.0,87249.0,0.01146144]
[1766118829714,0.07302624,87264.0,87249.0,0.12659]
[1766118830275,0.00576,87263.0,87249.0,0.12659]
[1766118830477,0.00576,87263.0,87250.0,0.47122373]
[1766118830705,0.01798068,87264.0,87250.0,0.48268504]
[1766118831039,0.00576,87263.0,87250.0,0.48268504]
[1766118831380,0.00576,87263.0,87252.0,0.01146105]
[1766118831582,6.8e-07,87264.0,87263.0,0.001099]
[1766118831788,0.05504556,87280.0,87261.0,0.01145987]
[1766118831988,0.00576,87279.0,87267.0,0.12659]
[1766118832230,0.00576,87280.0,87268.0,0.01145895]
[1766118832421,0.00576,87280.0,87269.0,0.242]
[1766118833590,0.00576,87282.0,87269.0,0.242]
[1766118833868,0.00576,87282.0,87270.0,0.12659]
[1766118834046,0.0907,87294.0,87273.0,0.11541]
[1766118834199,0.00576,87293.0,87274.0,0.242]
[1766118834405,0.00576,87293.0,87274.0,0.11541]
[1766118834605,0.05504556,87281.0,87267.0,0.00010939]
[1766118834794,0.01450312,87280.0,87267.0,0.00010939]
[1766118835004,0.01450312,87280.0,87267.0,0.12669939]
[1766118835210,0.01450312,87280.0,87268.0,0.01145895]
[1766118835415,0.00576,87281.0,87268.0,0.242]
[1766118835622,0.00576,87281.0,87269.0,0.22917541]
[1766118835825,0.00576,87281.0,87271.0,0.12659]
[1766118836051,0.00576,87281.0,87271.0,0.242]
[1766118836264,0.0907,87294.0,87272.0,0.01145842]
[1766118836470,0.00576,87293.0,87274.0,0.24062143]
[1766118836673,0.00576,87293.0,87276.0,0.12659]
[1766118837255,0.00576,87292.0,87276.0,0.12659]
[1766118838944,0.00576,87292.0,87275.0,0.11541]
[1766118839499,0.00576,87292.0,87278.0,0.01145764]
[1766118839709,0.0907,87299.0,87288.0,0.01145632]
[1766118839918,0.01340412,87315.0,87288.0,0.01145632]
[1766118840119,0.01340412,87315.0,87287.0,0.22912763]
[1766118840120,0.00576,87310.0,87292.0,0.0114558]
[1766118840440,0.00576,87310.0,87285.0,0.00576]
[1766118840569,0.62183974,87310.0,87283.0,0.22913969]
[1766118840782,0.86236214,87310.0,87284.0,0.00576]
[1766118841175,0.05504556,87297.0,87276.0,0.0114579]
[1766118841378,0.05504556,87297.0,87281.0,0.01145724]
[1766118841379,0.01340412,87296.0,87281.0,0.01145724]
[1766118841636,0.01340412,87296.0,87282.0,0.22914201]
[1766118841843,0.00576,87298.0,87283.0,0.00576]
[1766118843394,0.05504556,87296.0,87283.0,0.00576]
[1766118843666,0.01340412,87295.0,87283.0,0.00576]
[1766118844121,0.00576,87298.0,87282.0,0.24059885]
[1766118844327,0.00576,87298.0,87283.0,0.12113]
[1766118845480,0.00576,87298.0,87282.0,0.12408]
[1766118845929,0.05504556,87297.0,87281.0,0.00576]
[1766118846100,0.05504556,87297.0,87282.0,0.24521]
[1766118846308,0.00576,87296.0,87285.0,0.25666672]
[1766118846675,0.0907,87307.0,87289.0,0.12113]
[1766118846848,0.00576,87306.0,87289.0,0.12113]
[1766118848311,0.02373259,87306.0,87289.0,0.12113]
[1766118849706,0.01797259,87306.0,87290.0,0.13258606]
[1766118849930,0.00576,87305.0,87290.0,0.12113]
[1766118850600,0.00576,87305.0,87292.0,0.0114558]
[1766118850813,0.01797259,87306.0,87293.0,0.24521]
[1766118851222,0.05504556,87311.0,87294.0,0.01145554]
[1766118851434,0.68262113,87310.0,87294.0,0.01145554]
[1766118851840,0.67686113,87310.0,87294.0,0.01145554]
[1766118851996,0.00576,87309.0,87293.0,0.24521]
[1766118852380,0.00612525,87309.0,87293.0,0.25666567]
[1766118853010,0.00612525,87309.0,87294.0,0.01145554]
[1766118853606,0.00612525,87309.0,87295.0,0.0114554]
[1766118853810,0.00612525,87309.0,87293.0,0.48577865]
[1766118854093,0.00612525,87309.0,87293.0,0.24521]
[1766118854298,0.00612525,87309.0,87293.0,0.25666567]
[1766118854512,0.00612525,87309.0,87293.0,0.13258567]
[1766118854666,1.1e-06,87314.0,87308.0,0.12408]
[1766118854948,0.0004,87318.0,87313.0,0.12408]
[1766118854949,5.8e-07,87318.0,87313.0,0.12408]
[1766118855126,5.8e-07,87318.0,87314.0,0.12113]
[1766118855329,5.8e-07,87318.0,87311.0,0.24627433]
[1766118855330,5.8e-07,87318.0,87311.0,0.00576]
[1766118855627,0.05504556,87317.0,87297.0,0.01145514]
[1766118855830,0.001099,87311.0,87299.0,0.22909542]
[1766118856029,0.001099,87311.0,87298.0,0.00576]
[1766118856178,0.01340412,87316.0,87299.0,0.00576]
[1766118857006,0.67686113,87310.0,87299.0,0.00576]
[1766118857239,0.05504556,87317.0,87299.0,0.00576]
[1766118857848,0.05504556,87317.0,87299.0,0.01721488]
[1766118858001,0.05504556,87317.0,87299.0,0.25097]
[1766118858199,0.05504556,87317.0,87299.0,0.26242488]
[1766118858404,0.05504556,87317.0,87300.0,0.01145475]
[1766118858645,0.05504556,87317.0,87300.0,0.25666475]
[1766118858828,0.05504556,87317.0,87301.0,0.01145462]
[1766118859227,5.8e-07,87318.0,87304.0,0.01145422]
[1766118859401,5.8e-07,87318.0,87305.0,0.01145409]
[1766118859732,5.8e-07,87318.0,87309.0,0.01145357]
[1766118859944,5.8e-07,87318.0,87309.0,0.25666357]
[1766118860149,5.8e-07,87318.0,87306.0,0.00576]
[1766118860529,5.8e-07,87318.0,87308.0,0.12113]
[1766118861498,0.001099,87308.0,87306.0,0.00576]
[1766118861700,0.001099,87308.0,87299.0,0.25666488]
[1766118861844,5.8e-07,87318.0,87300.0,0.00576]
[1766118862042,5.8e-07,87318.0,87300.0,0.24630949]
[1766118862355,5.8e-07,87318.0,87302.0,0.12113]
[1766118862788,5.8e-07,87318.0,87297.0,0.00036525]
[1766118862939,5.8e-07,87318.0,87300.0,0.25097]
[1766118863142,5.8e-07,87318.0,87297.0,0.00036525]
[1766118863143,0.67686113,87310.0,87297.0,0.00036525]
[1766118863345,0.01340412,87309.0,87297.0,0.00036525]
[1766118864280,0.01340412,87310.0,87297.0,0.00036525]
[1766118866758,0.01145226,87319.0,87297.0,0.00036525]
[1766118866759,0.0004,87333.0,87310.0,0.01145344]
[1766118867044,0.0004,87333.0,87313.0,0.25666304]
[1766118867045,0.00576,87324.0,87313.0,0.25666304]
[1766118867192,0.00576,87324.0,87315.0,0.01145278]
[1766118867403,0.00576,87324.0,87313.0,0.36459138]
[1766118867606,0.00576,87324.0,87314.0,0.0137435]
[1766118867803,0.00576,87324.0,87313.0,0.12408]
[1766118868032,0.00576,87324.0,87314.0,0.01145291]
[1766118868238,0.00576,87324.0,87314.0,0.12113]
[1766118868447,0.00576,87324.0,87313.0,0.12408]
[1766118868642,0.0004,87333.0,87315.0,0.12408]
[1766118868841,0.0004,87333.0,87314.0,0.1348735]
[1766118868842,1.65e-06,87322.0,87314.0,0.00576]
[1766118869016,1.65e-06,87322.0,87314.0,0.004661]
[1766118872920,0.01145278,87315.0,87297.0,0.04160966]
[1766118873041,0.05504556,87309.0,87298.0,0.00576]
[1766118873250,0.01340412,87308.0,87297.0,0.00036525]
[1766118873454,0.05504556,87309.0,87297.0,0.00036525]
[1766118873655,0.01145383,87307.0,87295.0,0.04124441]
[1766118873860,0.01145383,87307.0,87282.0,0.13012]
[1766118873861,0.01340412,87306.0,87282.0,0.13012]
[1766118874073,0.01340412,87306.0,87288.0,0.00576]
[1766118875258,0.01145422,87304.0,87283.0,0.04588]
[1766118875467,0.01340412,87303.0,87283.0,0.04588]
[1766118875815,0.01145462,87301.0,87283.0,0.04588]
[1766118876021,0.05504556,87295.0,87282.0,0.00576]
[1766118876232,0.01340412,87294.0,87272.0,0.24651]
[1766118876552,0.01340412,87294.0,87265.0,0.01145934]
[1766118876553,0.05504556,87281.0,87257.0,0.05734039]
[1766118876729,0.00576,87280.0,87257.0,0.00576]
[1766118876929,0.0114575,87279.0,87257.0,0.00576]
[1766118877453,0.00576,87280.0,87257.0,0.00576]
[1766118877657,0.00576,87280.0,87259.0,0.01146013]
[1766118877857,0.00576,87280.0,87260.0,0.12785]
[1766118878263,0.05504556,87281.0,87266.0,0.14157921]
[1766118878464,0.05504556,87281.0,87267.0,0.24651]
[1766118878662,0.00576,87280.0,87267.0,0.25796908]
[1766118878817,0.05504556,87281.0,87267.0,0.25796908]
[1766118878818,0.05504556,87281.0,87267.0,0.24651]
[1766118879039,0.00576,87280.0,87267.0,0.24651]
[1766118879298,0.05504556,87281.0,87267.0,0.24651]
[1766118879602,0.00576,87279.0,87259.0,0.00010948]
[1766118880409,0.24060748,87280.0,87259.0,0.00010948]
[1766118880614,0.01916412,87278.0,87259.0,0.00010948]
[1766118881015,0.01340412,87278.0,87259.0,0.00010948]
[1766118881286,0.00576,87277.0,87259.0,0.00010948]
[1766118881456,0.01340412,87276.0,87259.0,0.00010948]
[1766118882209,0.00576,87275.0,87259.0,0.00010948]
[1766118886756,0.01340412,87274.0,87259.0,0.00010948]
[1766118886979,0.05504556,87267.0,87259.0,0.00010948]
[1766118887192,0.01340412,87266.0,87251.0,0.00571792]
[1766118887394,0.01340412,87266.0,87241.0,0.24651]
[1766118887395,0.01145934,87265.0,87244.0,0.00576]
[1766118887627,0.01145974,87262.0,87244.0,0.00576]
[1766118887834,0.01340412,87261.0,87244.0,0.00576]
[1766118888259,0.00576,87260.0,87244.0,0.00576]
[1766118888467,0.01340412,87259.0,87244.0,0.00576]
[1766118889261,0.00576,87260.0,87244.0,0.00576]
[1766118889826,0.00576,87260.0,87244.0,0.0172221]
[1766118890441,0.00576,87260.0,87245.0,0.24651]
[1766118891971,0.00576,87260.0,87245.0,0.13012]
[1766118892169,0.01340412,87259.0,87244.0,0.00576]
[1766118892382,0.05504556,87253.0,87240.0,0.00576]
[1766118892589,0.01340412,87252.0,87240.0,0.00576]
[1766118893028,0.01340412,87252.0,87234.0,0.04588]
[1766118893827,0.01340412,87252.0,87233.0,0.00576]
[1766118895163,0.91470324,87250.0,87233.0,0.00576]
[1766118895384,0.30148998,87253.0,87233.0,0.00576]
[1766118895605,0.01146118,87251.0,87233.0,0.00576]
[1766118896303,0.01146171,87247.0,87223.0,0.11639]
[1766118896526,0.01146171,87247.0,87227.0,0.00576]
[1766118896527,0.25986283,87246.0,87227.0,0.00576]
[1766118896751,0.00576,87246.0,87227.0,0.00576]
[1766118896955,0.03062596,87246.0,87227.0,0.00576]
[1766118897166,0.00576,87246.0,87227.0,0.00576]
[1766118897576,0.01798242,87248.0,87229.0,0.01146407]
[1766118897785,0.01340412,87247.0,87227.0,0.00576]
[1766118897991,0.06080556,87248.0,87227.0,0.00576]
[1766118898220,0.06080556,87248.0,87227.0,0.01722434]
[1766118898427,0.06080556,87248.0,87227.0,0.00576]
[1766118899531,0.06080556,87248.0,87227.0,0.25227]
[1766118899684,0.06080556,87248.0,87228.0,0.24651]
[1766118900787,0.06080556,87248.0,87230.0,0.25797394]
[1766118900989,0.06080556,87248.0,87231.0,0.11639]
[1766118901189,0.06080556,87248.0,87231.0,0.24651]
[1766118901367,0.06080556,87248.0,87228.0,0.24651]
[1766118901555,0.00576,87248.0,87227.0,0.00576]
[1766118901757,0.00576,87248.0,87231.0,0.24073946]
[1766118902024,0.00576,87248.0,87234.0,0.13012]
[1766118902225,0.00576,87248.0,87234.0,0.24651]
[1766118902429,0.00576,87248.0,87235.0,0.01146328]
[1766118902639,0.00576,87248.0,87234.0,0.25797342]
[1766118902924,0.00576,87247.0,87232.0,0.01146368]
[1766118903071,0.00576,87247.0,87233.0,0.24862]
[1766118903431,0.00576,87247.0,87233.0,0.13221]
[1766118903604,0.00576,87247.0,87227.0,0.12217]
[1766118903605,0.00576,87247.0,87234.0,0.24862]
[1766118904592,0.00576,87247.0,87235.0,0.01146328]
[1766118904796,0.00576,87253.0,87245.0,0.24862]
[1766118905043,0.04592,87263.0,87246.0,0.01146184]
[1766118905044,0.00576,87259.0,87246.0,0.01146184]
[1766118905242,0.00576,87259.0,87247.0,0.26008171]
[1766118905495,0.00576,87259.0,87247.0,0.24862]
[1766118905687,0.00576,87259.0,87247.0,0.26008171]
[1766118905980,0.00010937,87265.0,87247.0,0.48931545]
[1766118906211,0.00576,87264.0,87248.0,0.01146158]
[1766118906397,0.00576,87264.0,87251.0,0.11641]
[1766118906548,0.00576,87264.0,87244.0,0.00576]
[1766118906755,0.00576,87264.0,87244.0,0.2464638]
[1766118906952,0.00576,87264.0,87244.0,0.0172221]
[1766118907368,0.00576,87264.0,87245.0,0.01146197]
[1766118907563,0.00576,87264.0,87244.0,0.24646343]
[1766118907774,0.00576,87264.0,87244.0,0.0172221]
[1766118908426,0.00576,87264.0,87244.0,0.00576]
[1766118908774,0.0907,87263.0,87244.0,0.00576]
[1766118909826,0.00576,87264.0,87244.0,0.00576]
[1766118910364,0.00576,87264.0,87244.0,0.0172221]
[1766118910554,0.00576,87264.0,87244.0,0.00576]
[1766118910757,0.00576,87264.0,87245.0,0.01146197]
[1766118910961,0.00576,87264.0,87245.0,0.2407014]
[1766118911160,0.00576,87264.0,87244.0,0.00576]
[1766118913466,0.00576,87264.0,87244.0,0.0172221]
[1766118913889,0.00576,87264.0,87244.0,0.00576]
[1766118917768,0.00576,87264.0,87244.0,0.0172221]
[1766118918091,0.00576,87264.0,87246.0,0.01146184]
[1766118918450,0.00576,87264.0,87246.0,0.24069839]
[1766118918651,0.00576,87264.0,87246.0,0.01146184]
[1766118918864,0.00576,87264.0,87247.0,0.24069486]
[1766118919062,0.00576,87264.0,87245.0,0.01146197]
[1766118919265,0.00576,87264.0,87244.0,0.12217]
[1766118920114,0.10410412,87263.0,87244.0,0.00576]
[1766118920317,0.05504556,87253.0,87244.0,0.00576]
[1766118920935,0.001099,87244.0,87238.0,0.04109227]
[1766118921148,0.01340412,87252.0,87238.0,0.04109227]
[1766118923089,0.01340412,87252.0,87236.0,0.04685227]
[1766118923478,0.05504556,87253.0,87236.0,0.00576]
[1766118923685,0.01146105,87252.0,87236.0,0.00576]
[1766118923867,0.01146144,87249.0,87231.0,0.04109227]
[1766118924063,0.23499166,87248.0,87230.0,0.16326227]
[1766118924282,0.24645389,87248.0,87230.0,0.04685227]
[1766118924779,0.00576,87248.0,87230.0,0.04685227]
[1766118925074,0.00576,87248.0,87230.0,0.16326227]
[1766118925258,0.00576,87248.0,87231.0,0.11641]
[1766118925516,0.00576,87248.0,87230.0,0.04685227]
[1766118925715,0.05504556,87239.0,87230.0,0.04685227]
[1766118926254,0.05504556,87239.0,87230.0,0.00576]
[1766118927821,0.05504556,87239.0,87229.0,0.04109227]
[1766118927962,0.05504556,87239.0,87228.0,0.04109227]
[1766118928163,0.05504556,87239.0,87224.0,0.12217]
[1766118928164,0.05504556,87239.0,87227.0,0.04109227]
[1766118928596,0.05504556,87239.0,87226.0,0.04109227]
[1766118929775,0.00576,87246.0,87238.0,0.13221]
[1766118929978,0.00576,87246.0,87238.0,0.24862]
[1766118930316,0.00576,87246.0,87238.0,0.13221]
[1766118931739,0.00576,87246.0,87233.0,0.00576]
[1766118932362,0.00576,87246.0,87233.0,0.12217]
[1766118932534,0.00576,87246.0,87235.0,0.11641]
[1766118933907,0.00576,87246.0,87234.0,0.13221]
[1766118934029,0.00576,87246.0,87233.0,0.00576]
[1766118940964,0.00576,87246.0,87234.0,0.26475]
[1766118941959,0.00576,87246.0,87234.0,0.13987]
[1766118942757,0.67778798,87250.0,87234.0,0.15133342]
[1766118942957,0.68354798,87250.0,87234.0,0.13987]
[1766118946209,0.10216144,87249.0,87230.0,0.00576]
[1766118946410,0.05504556,87239.0,87230.0,0.01442481]
[1766118946612,0.05504556,87239.0,87230.0,0.00576]
[1766118952001,0.001099,87230.0,87224.0,0.03939759]
[1766118952205,0.0907,87249.0,87229.0,0.13987]
[1766118952407,0.04592,87247.0,87231.0,0.12488]
[1766118953079,0.0907,87249.0,87247.0,0.001099]
[1766118953280,0.10096556,87253.0,87247.0,0.001099]
[1766118953281,0.00576,87248.0,87247.0,0.001099]
[1766118953492,0.00576,87248.0,87239.0,0.13987]
[1766118953695,0.00576,87248.0,87234.0,0.13064]
[1766118954664,0.00576,87248.0,87234.0,0.00576]
[1766118955490,0.01146171,87247.0,87234.0,0.00576]
[1766118955777,0.01146171,87247.0,87229.0,0.00576]
[1766118955778,0.67797796,87244.0,87229.0,0.00576]
[1766118955973,0.01722158,87248.0,87229.0,0.00576]
[1766118955974,0.67797796,87240.0,87229.0,0.00576]
[1766118956122,0.00576,87242.0,87229.0,0.00576]
[1766118956322,0.00576,87242.0,87229.0,0.27051]
[1766118956655,0.00576,87242.0,87230.0,0.12488]
[1766118957442,0.00576,87242.0,87229.0,0.14563]
[1766118958036,0.05504556,87239.0,87226.0,0.00576]
[1766118958152,0.67797796,87234.0,87226.0,7.963e-05]
[1766118958778,0.01340412,87233.0,87221.0,0.00576]
[1766118958990,0.01146381,87231.0,87215.0,0.06151937]
[1766118959327,0.01146381,87231.0,87214.0,0.13987]
[1766118959328,0.67797796,87230.0,87212.0,0.0630126]
[1766118959461,0.00576,87229.0,87212.0,0.0630126]
[1766118959910,0.05504556,87224.0,87212.0,0.0630126]
[1766118960110,0.05504556,87224.0,87212.0,0.00149323]
[1766118960679,0.00576,87229.0,87212.0,0.00149323]
[1766118960880,0.00576,87229.0,87224.0,0.001099]
[1766118961092,0.00576,87229.0,87217.0,0.12488]
[1766118961743,0.00576,87229.0,87216.0,0.13987]
[1766118962130,0.05504556,87225.0,87216.0,0.13987]
[1766118963117,0.05504556,87225.0,87212.0,0.00149323]
[1766118963319,0.00576,87229.0,87215.0,0.01146591]
[1766118963526,0.00576,87229.0,87225.0,0.001099]
[1766118963720,0.00576,87229.0,87216.0,0.26886578]
[1766118964220,0.00576,87229.0,87217.0,0.01146565]
[1766118964616,0.00576,87229.0,87217.0,0.24077859]
[1766118964789,0.01798584,87232.0,87217.0,0.12980565]
[1766118964991,0.00576,87238.0,87230.0,0.11834]
[1766118965146,0.06080556,87238.0,87230.0,0.11834]
[1766118965548,0.06080556,87238.0,87225.0,0.11834]
[1766118965754,0.67797796,87235.0,87216.0,0.24078105]
[1766118966068,0.67797796,87230.0,87216.0,0.01146578]
[1766118966272,0.67797796,87230.0,87213.0,0.2574]
[1766118967846,0.05504556,87224.0,87213.0,0.2574]
[1766118968341,0.05504556,87224.0,87213.0,0.13906]
[1766118968583,0.05004556,87224.0,87213.0,0.13906]
[1766118968757,0.05004556,87224.0,87212.0,0.00725323]
[1766118974506,0.67797796,87222.0,87212.0,0.00725323]
[1766118974709,0.05004556,87224.0,87212.0,0.00725323]
[1766118975165,0.00576,87226.0,87212.0,0.00725323]
[1766118975315,0.00576,87226.0,87213.0,0.2574]
[1766118976703,0.05504556,87224.0,87213.0,0.2574]
[1766118976951,0.05504556,87224.0,87213.0,0.19422714]
[1766118977733,0.05504556,87224.0,87213.0,0.07588714]
[1766118978965,0.05394656,87224.0,87212.0,0.00725323]
[1766118979116,0.05394656,87224.0,87214.0,0.2574]
[1766118979769,0.05394656,87224.0,87214.0,0.13906]
[1766118979936,0.05394656,87224.0,87212.0,0.00725323]
[1766118979937,0.73192452,87224.0,87212.0,0.00725323]
[1766118980556,0.73192452,87224.0,87201.0,0.01146775]
[1766118980557,0.00109577,87212.0,87192.0,0.06151937]
[1766118980839,0.05504556,87196.0,87185.0,0.06151937]
[1766118981055,0.05504556,87196.0,87168.0,0.05983508]
[1766118981056,0.69714208,87195.0,87168.0,0.05983508]
[1766118981293,0.05504556,87179.0,87168.0,0.2574]
[1766118981489,8.409e-05,87169.0,87168.0,0.2574]
[1766118981994,8.409e-05,87169.0,87168.0,0.2577656]
[1766118983252,0.00576,87183.0,87171.0,0.24090433]
[1766118983460,0.05504556,87182.0,87172.0,0.01147157]
[1766118983697,0.00576,87188.0,87181.0,0.26887038]
[1766118983834,0.0907,87195.0,87181.0,0.26887038]
[1766118984035,0.00576,87190.0,87181.0,0.26887038]
[1766118984236,0.00576,87190.0,87182.0,0.01147025]
[1766118984437,0.00576,87190.0,87181.0,0.26887038]
[1766118984639,0.00576,87190.0,87181.0,0.24087808]
[1766118984845,0.00576,87190.0,87182.0,0.01147025]
[1766118985640,0.07304046,87196.0,87182.0,0.01147025]
[1766118985846,0.00576,87191.0,87182.0,0.01147025]
[1766118986051,0.00576,87191.0,87184.0,0.01146999]
[1766118986294,0.00576,87191.0,87183.0,0.01147012]
[1766118986691,0.00576,87191.0,87181.0,0.01147038]
[1766118986870,0.00576,87191.0,87179.0,0.22941304]
[1766118987056,0.00576,87191.0,87180.0,0.01147052]
[1766118987257,0.00576,87191.0,87181.0,0.24087631]
[1766118987537,0.00576,87191.0,87179.0,0.01147065]
[1766118987731,0.67797796,87190.0,87178.0,0.00576]
[1766118987933,0.001096,87178.0,87165.0,0.22944966]
[1766118988134,0.00576,87179.0,87168.0,0.0003656]
[1766118988560,0.00576,87182.0,87170.0,0.01147183]
[1766118988801,0.00576,87182.0,87168.0,0.0003656]
[1766118989010,0.00576,87182.0,87168.0,0.01183769]
[1766118989231,0.00576,87182.0,87168.0,0.0003656]
[1766118989442,0.00576,87182.0,87169.0,0.01147196]
[1766118989573,0.00576,87182.0,87169.0,0.24091127]
[1766118989773,0.00576,87182.0,87168.0,0.0003656]
[1766118989971,0.00576,87182.0,87168.0,0.01183769]
[1766118990186,0.00576,87182.0,87168.0,0.0003656]
[1766118990407,0.00576,87183.0,87172.0,0.2574]
[1766118990565,0.00576,87183.0,87168.0,0.0003656]
[1766118991124,0.05504556,87175.0,87168.0,0.0003656]
[1766118991299,0.05504556,87175.0,87168.0,6e-07]
[1766118991502,0.29594205,87175.0,87152.0,0.16446]
[1766118991702,0.90741478,87170.0,87152.0,0.0002]
[1766118991881,0.05504556,87161.0,87152.0,0.0002]
[1766118993458,0.00576,87165.0,87152.0,0.0002]
[1766118994632,0.05504556,87161.0,87152.0,0.0002]
[1766118996772,0.0002,87152.0,87148.0,0.00444003]
[1766118996948,0.01340412,87160.0,87148.0,0.00444003]
[1766118998083,0.01340412,87160.0,87149.0,0.25088]
[1766118998217,0.01340412,87160.0,87149.0,0.13165]
[1766118998622,0.00576,87159.0,87149.0,0.13165]
[1766118999463,0.00576,87159.0,87145.0,0.0002]
[1766118999661,0.000531,87149.0,87145.0,0.0002]
[1766119000089,0.01340412,87158.0,87145.0,0.0002]
[1766119001165,0.00576,87159.0,87147.0,0.11923]
[1766119001548,0.00576,87159.0,87145.0,0.13185]
[1766119002588,0.00576,87159.0,87145.0,0.25108]
[1766119003829,0.00576,87159.0,87144.0,0.0002]
[1766119007671,0.01340412,87158.0,87144.0,0.0002]